Workbook

Sheet Projet
B2: CLIENT | J2: =B8/E8 -> 1.044734568
B3: Projet
B5: =J2 -> 1.044734568
B7: Temps projet : | E7: Temps estimé :
B8: =(Taches!C10+Taches!D10) -> 1.958877315 | E8: =E13+E21+E29+E37+E45+E53 -> 1.875
B10: =Taches!A2 -> Tâche 1 | D10: - | E10: Description | J10: =B13/E13 -> 3.760244444
B12: Temps tâche : | E12: Temps estimé :
B13: =(Taches!C2+Taches!D2) -> 1.958460648 | E13: 12:30:00
B18: =Taches!A3 -> Tâche 2 | D18: - | E18: Description | J18: =Taches!G4/Taches!G5 -> 0.0002508960573
B20: Temps tâche : | E20: Temps estimé :
B21: =(Taches!C3+Taches!D3) -> 0.000162037037 | E21: 15:30:00
B26: Tâche 3 | D26: - | E26: Description | J26: =Taches!G6/Taches!G7 -> 0
B28: Temps tâche : | E28: Temps estimé :
B29: =(Taches!C4+Taches!D4) -> 0 | E29: 15:30:00
B34: Tâche 4 | D34: - | E34: Description | J34: =Taches!G8/Taches!G9 -> 0
B36: Temps tâche : | E36: Temps estimé :
B37: =(Taches!C5+Taches!D5) -> 0 | E37: 00:30:00
B42: Tâche 5 | D42: - | E42: Description | J42: =Taches!G10/Taches!G11 -> 0.004444444444
B44: Temps tâche : | E44: Temps estimé :
B45: =(Taches!C6+Taches!D6) -> 9.259259259e-05 | E45: 00:30:00
B50: Tâche 6 | D50: - | E50: Description | J50: =Taches!G12/Taches!G13 -> 0.005555555556
B52: Temps tâche : | E52: Temps estimé :
B53: =(Taches!C7+Taches!D7) -> 0.0001157407407 | E53: 00:30:00

Sheet Taches
A1: Taches | B1: Chronos Secondes | C1: Heures | D1: T_Add | F1: Heures Décimales
A2: Tâche 1 | B2: 131 | C2: 00:02:11 | D2: ='Temps Add.'!T9 -> 1.956944444 | F2: Tâche 1 | G2: =(Projet!ChronoT1-INT(Projet!ChronoT1))*24 -> 23.00305556
A3: Tâche 2 | B3: 14 | C3: 00:00:14 | D3: ='Temps Add.'!T14 -> 0 | G3: =(Projet!E13-INT(Projet!E13))*24 -> 12.5
A4: Tâche 3 | B4: 0 | C4: 0 | D4: ='Temps Add.'!T19 -> 0 | F4: Tâche 2 | G4: =(ChronosT2-INT(ChronosT2))*24 -> 0.003888888889
A5: Tâche 4 | B5: 0 | C5: 0 | D5: ='Temps Add.'!T24 -> 0 | G5: =(Projet!E21-INT(Projet!E21))*24 -> 15.5
A6: Tâche 5 | B6: 8 | C6: 00:00:08 | D6: ='Temps Add.'!T29 -> 0 | F6: Tâche 3 | G6: =(Projet!B29-INT(Projet!B29))*24 -> 0
A7: Tâche 6 | B7: 10 | C7: 00:00:10 | D7: ='Temps Add.'!T34 -> 0 | G7: =(Projet!E29-INT(Projet!E29))*24 -> 15.5
F8: Tâche 4 | G8: =(Projet!B37-INT(Projet!E37))*24 -> 0
G9: =(Projet!E37-INT(Projet!E37))*24 -> 0.5
A10: Temps Total | B10: =SUM(B2:B7) -> 163 | C10: 00:02:47 | D10: =SUM(D2:D7) -> 1.956944444 | F10: Tâche 5 | G10: =(Projet!B45-INT(Projet!B45))*24 -> 0.002222222222
G11: =(Projet!E45-INT(Projet!E45))*24 -> 0.5
F12: Tâche 6 | G12: =(Projet!B53-INT(Projet!B53))*24 -> 0.002777777778
G13: =(Projet!E53-INT(Projet!E53))*24 -> 0.5

Sheet Temps Add.
A6: Tâche 1 - | B6: =Projet!E10 -> Description
A8: Date | T8: TOTAL
A9: Durée | B9: 00:00:00 | C9: 00:00:00 | D9: 00:00:00 | E9: 00:00:00 | F9: 00:00:00 | G9: 00:00:00 | H9: 00:00:00 | I9: 00:00:00 | J9: 00:00:00 | K9: 00:00:00 | L9: 00:00:00 | M9: 00:00:00 | N9: 00:00:00 | O9: 00:00:00 | P9: 00:00:00 | Q9: 23:23:00 | R9: 23:35:00 | T9: =SUM(B9:R9) -> 1.956944444
A11: Tâche 2 - | B11: =Projet!E18 -> Description
A13: Date | T13: TOTAL
A14: Durée | B14: 00:00:00 | C14: 00:00:00 | D14: 00:00:00 | E14: 00:00:00 | F14: 00:00:00 | G14: 00:00:00 | H14: 00:00:00 | I14: 00:00:00 | J14: 00:00:00 | K14: 00:00:00 | L14: 00:00:00 | M14: 00:00:00 | N14: 00:00:00 | O14: 00:00:00 | P14: 00:00:00 | Q14: 00:00:00 | R14: 00:00:00 | T14: =SUM(B14:R14) -> 0
A16: Tâche 3 - | B16: =Projet!E26 -> Description
A18: Date | T18: TOTAL
A19: Durée | B19: 00:00:00 | C19: 00:00:00 | D19: 00:00:00 | E19: 00:00:00 | F19: 00:00:00 | G19: 00:00:00 | H19: 00:00:00 | I19: 00:00:00 | J19: 00:00:00 | K19: 00:00:00 | L19: 00:00:00 | M19: 00:00:00 | N19: 00:00:00 | O19: 00:00:00 | P19: 00:00:00 | Q19: 00:00:00 | R19: 00:00:00 | T19: =SUM(B19:R19) -> 0
A21: Tâche 4 - | B21: =Projet!E34 -> Description
A23: Date | T23: TOTAL
A24: Durée | B24: 00:00:00 | C24: 00:00:00 | D24: 00:00:00 | E24: 00:00:00 | F24: 00:00:00 | G24: 00:00:00 | H24: 00:00:00 | I24: 00:00:00 | J24: 00:00:00 | K24: 00:00:00 | L24: 00:00:00 | M24: 00:00:00 | N24: 00:00:00 | O24: 00:00:00 | P24: 00:00:00 | Q24: 00:00:00 | R24: 00:00:00 | T24: =SUM(B24:R24) -> 0
A26: Tâche 5 - | B26: =Projet!E42 -> Description
A28: Date | T28: TOTAL
A29: Durée | B29: 00:00:00 | C29: 00:00:00 | D29: 00:00:00 | E29: 00:00:00 | F29: 00:00:00 | G29: 00:00:00 | H29: 00:00:00 | I29: 00:00:00 | J29: 00:00:00 | K29: 00:00:00 | L29: 00:00:00 | M29: 00:00:00 | N29: 00:00:00 | O29: 00:00:00 | P29: 00:00:00 | Q29: 00:00:00 | R29: 00:00:00 | T29: =SUM(B29:R29) -> 0
A31: Tâche 6 - | B31: =Projet!E50 -> Description
A33: Date | T33: TOTAL
A34: Durée | B34: 00:00:00 | C34: 00:00:00 | D34: 00:00:00 | E34: 00:00:00 | F34: 00:00:00 | G34: 00:00:00 | H34: 00:00:00 | I34: 00:00:00 | J34: 00:00:00 | K34: 00:00:00 | L34: 00:00:00 | M34: 00:00:00 | N34: 00:00:00 | O34: 00:00:00 | P34: 00:00:00 | Q34: 00:00:00 | R34: 00:00:00 | T34: =SUM(B34:R34) -> 0
